fUST/lending_fUST_20250823
["ID","MTS","AMOUNT","RATE_DAILY","PERIOD"]
[381024161,1755953439557,-408.58647314,0.00026521,2]
[381024162,1755953439567,-343.31613441,0.00026521,2]
[381024163,1755953439577,-500.0,0.00026521,2]
[381024164,1755953439586,-500.0,0.00026691,2]
[381024165,1755953439595,-5226.558117,0.00026714,2]
[381024166,1755953439605,-255.44773802,0.00026714,2]
[381024167,1755953439614,-500.0,0.00026723,2]
[381024168,1755953439624,-344.00333168,0.00026723,2]
[381024169,1755953439633,-300.0,0.00026724,2]
[381024170,1755953439643,-151.0,0.00026724,2]
[381024171,1755953439652,-201.93286099,0.00026724,2]
[381024172,1755953439661,-151.0,0.00026724,2]
[381024173,1755953439671,-300.0,0.00026724,2]
[381024174,1755953439680,-151.0,0.00026724,2]
[381024175,1755953439690,-151.0,0.00026724,2]
[381024176,1755953439701,-151.0,0.00026724,2]
[381024177,1755953439711,-300.0,0.00026724,2]
[381024178,1755953439720,-151.0,0.00026724,2]
[381024179,1755953439730,-151.0,0.00026724,2]
[381024180,1755953439740,-300.0,0.00026724,2]
[381024181,1755953439749,-151.0,0.00026724,2]
[381024182,1755953439759,-151.0,0.00026724,2]
[381024183,1755953439769,-300.0,0.00026724,2]
[381024184,1755953439778,-151.0,0.00026724,2]
[381024185,1755953439788,-151.0,0.00026724,2]
[381024186,1755953439797,-300.0,0.00026724,2]
[381024187,1755953439807,-300.0,0.00026724,2]
[381024188,1755953439816,-151.0,0.00026724,2]
[381024189,1755953439826,-151.0,0.00026724,2]
[381024190,1755953439836,-2030.296672,0.00026724,2]
[381024191,1755953439845,-300.0,0.00026724,2]
[381024192,1755953439855,-151.0,0.00026724,2]
[381024193,1755953439865,-300.0,0.00026724,2]
[381024195,1755953439875,-151.0,0.00026724,2]
[381024196,1755953439884,-165.0,0.00026724,2]
[381024197,1755953439895,-151.0,0.00026724,2]
[381024198,1755953439915,-300.0,0.00026724,2]
[381024199,1755953439925,-151.0,0.00026724,2]
[381024200,1755953439935,-151.0,0.00026724,2]
[381024201,1755953439944,-300.0,0.00026724,2]
[381024202,1755953439954,-151.0,0.00026724,2]
[381024203,1755953439966,-151.0,0.00026724,2]
[381024204,1755953439975,-300.0,0.00026724,2]
[381024205,1755953439985,-151.0,0.00026724,2]
[381024206,1755953439995,-194.24099703,0.00026724,2]
[381024207,1755953440004,-300.0,0.00026724,2]
[381024208,1755953440014,-151.0,0.00026724,2]
[381024209,1755953440023,-300.0,0.00026724,2]
[381024211,1755953440033,-220.12329846,0.00026724,2]
[381024212,1755953440043,-300.0,0.00026724,2]
[381024213,1755953440057,-1000.0,0.00026724,2]
[381024214,1755953440066,-300.0,0.00026724,2]
[381024215,1755953440076,-1000.0,0.00026724,2]
[381024216,1755953440085,-300.0,0.00026724,2]
[381024218,1755953440095,-1000.0,0.00026724,2]
[381024220,1755953440104,-250.0,0.00026724,2]
[381024221,1755953440114,-300.0,0.00026724,2]
[381024222,1755953440124,-250.0,0.00026724,2]
[381024223,1755953440134,-624.0,0.00026724,2]
[381024224,1755953440143,-300.0,0.00026724,2]
[381024226,1755953440153,-250.0,0.00026724,2]
[381024227,1755953440162,-300.0,0.00026724,2]
[381024228,1755953440171,-300.0,0.00026724,2]
[381024229,1755953440180,-250.0,0.00026724,2]
[381024230,1755953440190,-300.0,0.00026724,2]
[381024231,1755953440200,-300.0,0.00026724,2]
[381024232,1755953440209,-323.29850312,0.00026724,2]
[381024233,1755953440219,-2105.41764886,0.00026779,2]
[381024234,1755953440228,-21534.00000005,0.00026822,2]
[381024235,1755953440238,-2183.31810187,0.00026834,2]
[381024236,1755953440248,-153.0,0.00026859,2]
[381024237,1755953440257,-153.0,0.00026859,2]
[381024238,1755953440267,-153.0,0.00026859,2]
[381024240,1755953440277,-153.0,0.00026859,2]
[381024241,1755953440287,-5226.558117,0.00026863,2]
[381024242,1755953440297,-255.44773802,0.00026863,2]
[381024243,1755953440307,-501.27885822,0.00026873,2]
[381024244,1755953440316,-534.66495259,0.00026873,2]
[381024245,1755953440325,-500.0,0.00026873,2]
[381024246,1755953440335,-500.0,0.00026873,2]
[381024248,1755953440344,-5226.558117,0.00026879,2]
[381024250,1755953440354,-255.44773802,0.00026879,2]
[381024252,1755953440363,-5226.558117,0.0002688,2]
[381024254,1755953440372,-255.44773802,0.0002688,2]
[381024256,1755953440381,-41812.464936,0.00026889,2]
[381024258,1755953440391,-2043.58190416,0.00026889,2]
[381024260,1755953440400,-151.0,0.00026889,7]
[381024262,1755953440409,-151.0,0.00026889,7]
[381024264,1755953440419,-151.0,0.00026889,7]
[381024266,1755953440428,-172.108809,0.00026889,7]
[381024268,1755953440438,-152.669651,0.00026889,7]
[381024270,1755953440447,-151.0,0.00026889,7]
[381024272,1755953440457,-506.62246,0.00026889,7]
[381024274,1755953440471,-506.62246,0.00026889,7]
[381024276,1755953440482,-151.0,0.00026889,7]
[381024278,1755953440492,-151.0,0.00026889,7]
[381024280,1755953440501,-151.0,0.00026889,7]
[381024282,1755953440512,-151.0,0.00026889,7]
[381024284,1755953440521,-506.62246,0.00026889,7]
[381024286,1755953440531,-356.066081,0.00026889,7]
[381024288,1755953440542,-305.482126,0.00026889,7]
[381024290,1755953440551,-151.0,0.00026889,7]
[381024292,1755953440560,-151.0,0.00026889,7]
[381024294,1755953440570,-506.62246,0.00026889,7]
[381024296,1755953440579,-356.066081,0.00026889,7]
[381024298,1755953440588,-305.482126,0.00026889,7]
[381024300,1755953440597,-151.0,0.00026889,7]
[381024302,1755953440607,-356.066081,0.00026889,7]
[381024304,1755953440616,-305.482126,0.00026889,7]
[381024306,1755953440626,-292.222915,0.00026889,7]
[381024308,1755953440636,-356.066081,0.00026889,7]
[381024310,1755953440645,-305.482126,0.00026889,7]
[381024312,1755953440655,-151.0,0.00026889,7]
[381024314,1755953440664,-151.0,0.00026889,7]
[381024316,1755953440673,-151.64,0.00026889,7]
[381024318,1755953440683,-151.0,0.00026889,7]
[381024320,1755953440692,-764.422686,0.00026889,7]
[381024322,1755953440702,-151.0,0.00026889,7]
[381024324,1755953440711,-764.422686,0.00026889,7]
[381024326,1755953440722,-151.0,0.00026889,7]
[381024328,1755953440731,-159.823118,0.00026889,7]
[381024330,1755953440741,-764.422686,0.00026889,7]
[381024332,1755953440751,-159.823118,0.00026889,7]
[381024334,1755953440760,-764.422686,0.00026889,7]
[381024336,1755953440770,-159.823118,0.00026889,7]
[381024338,1755953440779,-159.823118,0.00026889,7]
[381024340,1755953440789,-151.0,0.00026889,7]
[381024342,1755953440798,-151.0,0.00026889,7]
[381024344,1755953440808,-151.0,0.00026889,7]
[381024346,1755953440818,-160.0,0.00026889,7]
[381024356,1755953440909,-151.0,0.00026889,7]
[381024358,1755953440919,-151.0,0.00026889,7]
[381024360,1755953440929,-151.0,0.00026889,7]
[381024362,1755953440939,-789.727048,0.00026889,7]
[381024364,1755953440950,-789.727048,0.00026889,7]
[381024366,1755953440960,-789.727048,0.00026889,7]
[381024368,1755953440969,-844.50316758,0.00026889,7]
[381024370,1755953440979,-789.727048,0.00026889,7]
[381024372,1755953440989,-785.802508,0.00026889,7]
[381024374,1755953440998,-785.802508,0.00026889,7]
[381024376,1755953441007,-785.802508,0.00026889,7]
[381024378,1755953441017,-785.802508,0.00026889,7]
[381024380,1755953441026,-625.393594,0.00026889,7]
[381024382,1755953441037,-625.393594,0.00026889,7]
[381024384,1755953441054,-625.393594,0.00026889,7]
[381024386,1755953441068,-152.56262,0.00026889,7]
[381024388,1755953441077,-625.393594,0.00026889,7]
[381024390,1755953441087,-151.0,0.00026889,7]
[381024392,1755953441096,-151.0,0.00026889,7]
[381024394,1755953441105,-182.999551,0.00026889,7]
[381024396,1755953441114,-182.999551,0.00026889,7]
[381024398,1755953441124,-182.999551,0.00026889,7]
[381024400,1755953441134,-182.999551,0.00026889,7]
[381024402,1755953441143,-151.0,0.00026889,7]
[381024404,1755953441153,-227.944364,0.00026889,7]
[381024406,1755953441165,-151.0,0.00026889,7]
[381024408,1755953441175,-227.944364,0.00026889,7]
[381024410,1755953441184,-227.944364,0.00026889,7]
[381024412,1755953441193,-227.944364,0.00026889,7]
[381024414,1755953441204,-507.628755,0.00026889,7]
[381024416,1755953441213,-507.628755,0.00026889,7]
[381024418,1755953441222,-507.628755,0.00026889,7]
[381024420,1755953441232,-507.628755,0.00026889,7]
[381024422,1755953441242,-151.0,0.00026889,7]
[381024424,1755953441251,-206.364772,0.00026889,7]
[381024426,1755953441260,-206.364772,0.00026889,7]
[381024428,1755953441270,-206.364772,0.00026889,7]
[381024430,1755953441280,-206.364772,0.00026889,7]
[381024432,1755953441289,-151.0,0.00026889,7]
[381024434,1755953441299,-151.0,0.00026889,7]
[381024436,1755953441309,-1007.531696,0.00026889,7]
[381024439,1755953441318,-151.0,0.00026889,7]
[381024441,1755953441329,-1385.271336,0.00026889,7]
[381024442,1755953441338,-1007.531696,0.00026889,7]
[381024445,1755953441348,-1385.271336,0.00026889,7]
[381024446,1755953441358,-1007.531696,0.00026889,7]
[381024448,1755953441367,-151.635013,0.00026889,7]
[381024451,1755953441376,-151.0,0.00026889,7]
[381024453,1755953441386,-1385.271336,0.00026889,7]
[381024455,1755953441396,-1007.531696,0.00026889,7]
[381024456,1755953441406,-151.0,0.00026889,7]
[381024459,1755953441415,-1385.271336,0.00026889,7]
[381024460,1755953441424,-151.0,0.00026889,7]
[381024463,1755953441434,-432.630406,0.00026889,7]
[381024465,1755953441443,-432.630406,0.00026889,7]
[381024467,1755953441453,-432.630406,0.00026889,7]
[381024468,1755953441465,-432.630406,0.00026889,7]
[381024471,1755953441479,-151.0,0.00026889,7]
[381024473,1755953441489,-151.0,0.00026889,7]
[381024475,1755953441499,-151.0,0.00026889,7]
[381024477,1755953441509,-238.022094,0.00026889,7]
[381024479,1755953441518,-277.126674,0.00026889,7]
[381024481,1755953441535,-238.022094,0.00026889,7]
[381024484,1755953441552,-238.022094,0.00026889,7]
[381024487,1755953441567,-277.126674,0.00026889,7]
[381024490,1755953441587,-277.126674,0.00026889,7]
[381024493,1755953441604,-238.022094,0.00026889,7]
[381024495,1755953441620,-277.126674,0.00026889,7]
[381024498,1755953441636,-151.0,0.00026889,7]
[381024501,1755953441653,-151.0,0.00026889,7]
[381024502,1755953441667,-151.0,0.00026889,7]
[381024503,1755953441683,-151.0,0.00026889,7]
[381024504,1755953441701,-151.0,0.00026889,7]
[381024505,1755953441721,-151.894825,0.00026889,7]
[381024506,1755953441733,-160.0,0.00026889,7]
[381024507,1755953441751,-2264.10087164,0.00026889,2]
[381024508,1755953441766,-151.0,0.0002689,7]
[381024509,1755953441783,-151.0,0.0002689,7]
[381024510,1755953441796,-151.0,0.0002689,7]
[381024511,1755953441810,-151.0,0.0002689,7]
[381024512,1755953441825,-151.0,0.0002689,7]
[381024513,1755953441839,-151.0,0.0002689,7]
[381024514,1755953441853,-151.0,0.0002689,7]
[381024515,1755953441870,-151.0,0.0002689,7]
[381024516,1755953441885,-520.798577,0.0002689,7]
[381024517,1755953441899,-520.798577,0.0002689,7]
[381024518,1755953441913,-520.798577,0.0002689,7]
[381024519,1755953441928,-520.798577,0.0002689,7]
[381024520,1755953441942,-232.37252479,0.0002689,7]
[381024522,1755953441958,-529.05847148,0.0002689,7]
[381024525,1755953441971,-417.15472785,0.0002689,7]
[381024527,1755953441986,-217.0334113,0.0002689,7]
[381024530,1755953442000,-5226.558117,0.0002689,2]
[381024532,1755953442014,-255.44773802,0.0002689,2]
[381024535,1755953442028,-370000.0,0.00026899,2]
[381024537,1755953442042,-151.231728,0.00026899,7]
[381024540,1755953442057,-151.0,0.00026899,7]
[381024542,1755953442071,-151.0,0.00026899,7]
[381024545,1755953442086,-151.0,0.00026899,7]
[381024547,1755953442101,-151.0,0.00026899,7]
[381024550,1755953442115,-283.24388,0.00026899,7]
[381024552,1755953442128,-151.0,0.00026899,7]
[381024555,1755953442143,-151.0,0.00026899,7]
[381024557,1755953442157,-151.0,0.00026899,7]
[381024559,1755953442171,-151.0,0.00026899,7]
[381024562,1755953442184,-154.040978,0.00026899,7]
[381024564,1755953442199,-151.0,0.00026899,7]
[381024567,1755953442213,-151.0,0.00026899,7]
[381024569,1755953442227,-172.005425,0.00026899,7]
[381024572,1755953442242,-172.005425,0.00026899,7]
[381024574,1755953442256,-151.0,0.00026899,7]
[381024577,1755953442270,-172.005425,0.00026899,7]
[381024579,1755953442284,-151.0,0.00026899,7]
[381024582,1755953442297,-172.005425,0.00026899,7]
[381024584,1755953442311,-151.0,0.00026899,7]
[381024587,1755953442325,-151.0,0.00026899,7]
[381024589,1755953442340,-151.0,0.00026899,7]
[381024591,1755953442351,-151.0,0.00026899,7]
[381024593,1755953442361,-158.57504,0.00026899,7]
[381024595,1755953442371,-151.0,0.00026899,7]
[381024597,1755953442380,-151.0,0.00026899,7]
[381024599,1755953442390,-151.0,0.00026899,7]
[381024601,1755953442399,-151.0,0.00026899,7]
[381024603,1755953442412,-151.0,0.00026899,7]
[381024621,1755953442580,-151.0,0.00026899,7]
[381024624,1755953442607,-151.0,0.00026899,7]
[381024626,1755953442616,-153.44021,0.00026899,7]
[381024628,1755953442626,-151.0,0.00026899,7]
[381024630,1755953442636,-151.0,0.00026899,7]
[381024632,1755953442646,-151.0,0.00026899,7]
[381024634,1755953442655,-151.0,0.00026899,7]
[381024636,1755953442665,-151.0,0.00026899,7]
[381024638,1755953442674,-151.0,0.00026899,7]
[381024640,1755953442684,-151.0,0.00026899,7]
[381024643,1755953442693,-151.0,0.00026899,7]
[381024644,1755953442703,-151.0,0.00026899,7]
[381024646,1755953442713,-151.0,0.00026899,7]
[381024648,1755953442722,-233.403046,0.00026899,7]
[381024650,1755953442731,-151.0,0.00026899,7]
[381024652,1755953442742,-151.0,0.00026899,7]
[381024654,1755953442752,-151.0,0.00026899,7]
[381024657,1755953442762,-151.0,0.00026899,7]
[381024658,1755953442772,-151.0,0.00026899,7]
[381024661,1755953442782,-151.0,0.00026899,7]
[381024664,1755953442791,-151.0,0.00026899,7]
[381024666,1755953442801,-151.0,0.00026899,7]
[381024668,1755953442810,-151.0,0.00026899,7]
[381024670,1755953442820,-151.0,0.00026899,7]
[381024671,1755953442829,-151.0,0.00026899,7]
[381024674,1755953442839,-151.0,0.00026899,7]
[381024678,1755953442850,-151.0,0.00026899,7]
[381024679,1755953442860,-151.0,0.00026899,7]
[381024681,1755953442870,-151.0,0.00026899,7]
[381024683,1755953442879,-151.0,0.00026899,7]
[381024685,1755953442889,-282.157406,0.00026899,7]
[381024687,1755953442898,-151.0,0.00026899,7]
[381024689,1755953442908,-520.798577,0.00026899,7]
[381024691,1755953442917,-520.798577,0.00026899,7]
[381024693,1755953442927,-520.798577,0.00026899,7]
[381024695,1755953442936,-520.798577,0.00026899,7]
[381024697,1755953442946,-219.000282,0.00026899,7]
[381024699,1755953442957,-506.62246,0.00026899,7]
[381024701,1755953442967,-506.62246,0.00026899,7]
[381024703,1755953442976,-151.0,0.00026899,7]
[381024705,1755953442986,-151.0,0.00026899,7]
[381024707,1755953442995,-151.0,0.00026899,7]
[381024709,1755953443004,-151.0,0.00026899,7]
[381024711,1755953443014,-506.62246,0.00026899,7]
[381024713,1755953443024,-356.066081,0.00026899,7]
[381024715,1755953443033,-305.482126,0.00026899,7]
[381024717,1755953443042,-151.0,0.00026899,7]
[381024719,1755953443052,-151.0,0.00026899,7]
[381024721,1755953443061,-506.62246,0.00026899,7]
[381024723,1755953443070,-356.066081,0.00026899,7]
[381024725,1755953443083,-305.482126,0.00026899,7]
[381024727,1755953443093,-151.0,0.00026899,7]
[381024729,1755953443103,-356.066081,0.00026899,7]
[381024731,1755953443112,-305.482126,0.00026899,7]
[381024733,1755953443121,-356.066081,0.00026899,7]
[381024735,1755953443131,-305.482126,0.00026899,7]
[381024737,1755953443140,-232.37252479,0.00026899,7]
[381024739,1755953443150,-151.0,0.00026899,7]
[381024741,1755953443162,-151.0,0.00026899,7]
[381024743,1755953443171,-151.0,0.00026899,7]
[381024745,1755953443180,-764.422686,0.00026899,7]
[381024747,1755953443190,-417.15472785,0.00026899,7]
[381024749,1755953443200,-151.0,0.00026899,7]
[381024751,1755953443209,-217.0334113,0.00026899,7]
[381024753,1755953443218,-764.422686,0.00026899,7]
[381024755,1755953443227,-151.0,0.00026899,7]
[381024757,1755953443237,-159.823118,0.00026899,7]
[381024760,1755953443247,-764.422686,0.00026899,7]
[381024761,1755953443257,-159.823118,0.00026899,7]
[381024763,1755953443266,-764.422686,0.00026899,7]
[381024765,1755953443276,-159.823118,0.00026899,7]
[381024767,1755953443285,-159.823118,0.00026899,7]
[381024769,1755953443295,-151.0,0.00026899,7]
[381024771,1755953443305,-151.0,0.00026899,7]
[381024773,1755953443314,-151.0,0.00026899,7]
[381024775,1755953443323,-151.0,0.00026899,7]
[381024777,1755953443333,-151.0,0.00026899,7]
[381024779,1755953443342,-151.0,0.00026899,7]
[381024781,1755953443352,-789.727048,0.00026899,7]
[381024784,1755953443362,-789.727048,0.00026899,7]
[381024785,1755953443372,-789.727048,0.00026899,7]
[381024787,1755953443381,-789.727048,0.00026899,7]
[381024789,1755953443391,-785.802508,0.00026899,7]
[381024791,1755953443400,-785.802508,0.00026899,7]
[381024793,1755953443411,-785.802508,0.00026899,7]
[381024795,1755953443420,-785.802508,0.00026899,7]
[381024797,1755953443430,-625.393594,0.00026899,7]
[381024799,1755953443439,-625.393594,0.00026899,7]
[381024801,1755953443449,-625.393594,0.00026899,7]
[381024803,1755953443459,-625.393594,0.00026899,7]
[381024805,1755953443472,-151.0,0.00026899,7]
[381024807,1755953443482,-151.0,0.00026899,7]
[381024809,1755953443491,-182.999551,0.00026899,7]
[381024811,1755953443501,-182.999551,0.00026899,7]
[381024813,1755953443510,-182.999551,0.00026899,7]
[381024815,1755953443519,-182.999551,0.00026899,7]
[381024817,1755953443529,-151.0,0.00026899,7]
[381024820,1755953443538,-227.944364,0.00026899,7]
[381024822,1755953443548,-151.0,0.00026899,7]
[381024823,1755953443557,-227.944364,0.00026899,7]
[381024825,1755953443567,-227.944364,0.00026899,7]
[381024826,1755953443576,-227.944364,0.00026899,7]
[381024827,1755953443585,-507.628755,0.00026899,7]
[381024828,1755953443594,-507.628755,0.00026899,7]
[381024829,1755953443604,-507.628755,0.00026899,7]
[381024830,1755953443613,-507.628755,0.00026899,7]
[381024831,1755953443623,-151.0,0.00026899,7]
[381024832,1755953443632,-206.364772,0.00026899,7]
[381024833,1755953443641,-206.364772,0.00026899,7]
[381024834,1755953443651,-206.364772,0.00026899,7]
[381024835,1755953443660,-206.364772,0.00026899,7]
[381024836,1755953443670,-151.0,0.00026899,7]
[381024837,1755953443679,-151.0,0.00026899,7]
[381024838,1755953443689,-1007.531696,0.00026899,7]
[381024839,1755953443699,-151.0,0.00026899,7]
[381024840,1755953443709,-1385.271336,0.00026899,7]
[381024841,1755953443718,-1007.531696,0.00026899,7]
[381024842,1755953443728,-1385.271336,0.00026899,7]
[381024843,1755953443737,-1007.531696,0.00026899,7]
[381024844,1755953443747,-151.0,0.00026899,7]
[381024845,1755953443757,-1385.271336,0.00026899,7]
[381024846,1755953443766,-1007.531696,0.00026899,7]
[381024847,1755953443776,-257.043807,0.00026899,7]
[381024848,1755953443786,-1385.271336,0.00026899,7]
[381024849,1755953443795,-432.630406,0.00026899,7]
[381024850,1755953443805,-432.630406,0.00026899,7]
[381024851,1755953443814,-432.630406,0.00026899,7]
[381024852,1755953443824,-432.630406,0.00026899,7]
[381024853,1755953443833,-151.0,0.00026899,7]
[381024854,1755953443842,-151.0,0.00026899,7]
[381024855,1755953443852,-151.0,0.00026899,7]
[381024856,1755953443861,-238.022094,0.00026899,7]
[381024857,1755953443871,-277.126674,0.00026899,7]
[381024858,1755953443881,-238.022094,0.00026899,7]
[381024859,1755953443890,-277.126674,0.00026899,7]
[381024860,1755953443900,-238.022094,0.00026899,7]
[381024861,1755953443910,-277.126674,0.00026899,7]
[381024862,1755953443923,-238.022094,0.00026899,7]
[381024863,1755953443933,-277.126674,0.00026899,7]
[381024864,1755953443942,-151.0,0.00026899,7]
[381024865,1755953443952,-151.0,0.00026899,7]
[381024866,1755953443963,-151.0,0.00026899,7]
[381024867,1755953443972,-151.0,0.00026899,7]
[381024868,1755953443982,-187.527472,0.00026899,7]
[381024869,1755953443992,-1506.67,0.000269,7]
[381024870,1755953444001,-18352.56,0.000269,2]
[381024871,1755953444011,-6390.6,0.000269,7]
[381024872,1755953444021,-2347.87260389,0.00026944,2]
[381024873,1755953444031,-215.94678008,0.00026957,2]
[381024874,1755953444040,-376.14580871,0.00026957,2]
[381024875,1755953444049,-529.05847148,0.00026957,2]
[381024876,1755953444059,-400.0,0.00026983,2]
[381024877,1755953444069,-183.07478115,0.00026997,2]
[381024878,1755953444078,-2434.74389024,0.00026999,2]
[381024879,1755953444087,-417.15472785,0.00027,3]
[381024880,1755953444097,-2524.82941417,0.00027054,2]
[381024881,1755953444107,-2008.43,0.00027085,4]
[381024882,1755953444116,-749.26524053,0.00027109,2]
[381024883,1755953444125,-778.04,0.00027172,3]
[381024884,1755953444134,-160.0,0.00027182,3]
[381024885,1755953444143,-844.50316758,0.00027182,3]
[381024886,1755953444153,-3112.14,0.00027182,3]
[381024887,1755953444163,-1556.06,0.00027182,3]
[381024888,1755953444172,-389.02,0.00027182,3]
[381024889,1755953444181,-6224.26,0.00027192,3]
[381024890,1755953444190,-209.40437684,0.00027272,2]
[381024891,1755953444200,-233.0,0.0002736,7]
[381024892,1755953444210,-500.0,0.00027397,5]
[381024893,1755953444220,-2823.21900249,0.00027517,2]
[381024894,1755953444229,-233.0,0.00027532,2]
[381024895,1755953444239,-199.0,0.00027602,10]
[381024897,1755953444248,-158.288624,0.00027653,20]
[381024899,1755953444258,-168.0,0.0002768,2]
[381024901,1755953444267,-874.9740542,0.00027701,2]
[381024903,1755953444278,-1002.597299,0.000278,2]
[381024905,1755953444288,-5226.558117,0.0002781,2]
[381024907,1755953444298,-255.44773802,0.0002781,2]
[381024909,1755953444308,-217.15233878,0.0002782,2]
[381024911,1755953444318,-168.0,0.00027871,2]
[381024913,1755953444328,-21590.27,0.000279,2]
[381024915,1755953444337,-168.0,0.00027941,2]
[381024917,1755953444348,-417.15472785,0.00028,10]
[381024919,1755953444358,-417.15472785,0.00028,10]
[381024921,1755953444368,-151.0,0.00028032,2]
[381024923,1755953444378,-180.91302652,0.00028032,2]
[381024925,1755953444388,-151.0,0.00028032,2]
[381024926,1755953444397,-151.0,0.00028032,2]
[381024927,1755953444407,-289.12337244,0.00028032,2]
[381024928,1755953444416,-151.0,0.00028032,2]
[381024929,1755953444425,-151.24868481,0.00028032,2]
[381024930,1755953444435,-151.0,0.00028032,2]
[381024931,1755953444444,-151.0,0.00028032,2]
[381024932,1755953444455,-151.0,0.00028032,2]
[381024933,1755953444469,-245.1431519,0.00028032,2]
[381024934,1755953444478,-151.0,0.00028032,2]
[381024935,1755953444488,-151.0,0.00028032,2]
[381024936,1755953444498,-151.0,0.00028032,2]
[381024937,1755953444510,-151.0,0.00028032,2]
[381024938,1755953444519,-151.0,0.00028032,2]
[381024939,1755953444528,-151.0,0.00028032,2]
[381024940,1755953444539,-151.0,0.00028032,2]
[381024941,1755953444553,-151.0,0.00028032,2]
[381024942,1755953444562,-151.0,0.00028032,2]
[381024943,1755953444572,-500.0,0.00028032,2]
[381024944,1755953444582,-211.94116543,0.00028032,2]
[381024945,1755953444591,-151.0,0.00028032,2]
[381024946,1755953444601,-151.0,0.00028032,2]
[381024947,1755953444610,-151.0,0.00028032,2]
[381024948,1755953444619,-1007.531696,0.00028032,7]
[381024949,1755953444630,-1385.271336,0.00028032,7]
[381024950,1755953444639,-1007.531696,0.00028032,7]
[381024951,1755953444649,-1385.271336,0.00028032,7]
[381024952,1755953444659,-1007.531696,0.00028032,7]
[381024953,1755953444668,-1385.271336,0.00028032,7]
[381024954,1755953444678,-1007.531696,0.00028032,7]
[381024955,1755953444688,-1385.271336,0.00028032,7]
[381024956,1755953444699,-432.630406,0.00028032,7]
[381024957,1755953444710,-432.630406,0.00028032,7]
[381024958,1755953444719,-432.630406,0.00028032,7]
[381024959,1755953444729,-432.630406,0.00028032,7]
[381024960,1755953444739,-151.0,0.00028032,7]
[381024961,1755953444748,-151.0,0.00028032,7]
[381024962,1755953444758,-151.0,0.00028032,7]
[381024963,1755953444768,-238.022094,0.00028032,7]
[381024964,1755953444777,-277.126674,0.00028032,7]
[381024965,1755953444787,-238.022094,0.00028032,7]
[381024966,1755953444796,-277.126674,0.00028032,7]
[381024967,1755953444806,-238.022094,0.00028032,7]
[381024968,1755953444920,-277.126674,0.00028032,7]
[381024969,1755953444930,-238.022094,0.00028032,7]
[381024970,1755953444939,-277.126674,0.00028032,7]
[381024971,1755953444948,-151.0,0.00028032,7]
[381024972,1755953444960,-151.0,0.00028032,7]
[381024973,1755953444969,-151.0,0.00028032,7]
[381024974,1755953444979,-151.0,0.00028032,7]
[381024975,1755953444989,-5226.558117,0.00028083,2]
[381024976,1755953444998,-255.44773802,0.00028083,2]
[381024977,1755953445007,-151.0,0.00028093,7]
[381024978,1755953445016,-151.0,0.00028093,7]
[381024979,1755953445025,-151.0,0.00028093,7]
[381024980,1755953445035,-151.0,0.00028093,7]
[381024981,1755953445043,-151.0,0.00028093,7]
[381024982,1755953445054,-153.469419,0.00028093,7]
[381024983,1755953445064,-789.727048,0.00028093,7]
[381024984,1755953445074,-789.727048,0.00028093,7]
[381024985,1755953445083,-789.727048,0.00028093,7]